fUST/lending_fUST_20240130
["ID","MTS","AMOUNT","RATE_DAILY","PERIOD"]
[313009315,1706607091688,-533.62472298,0.00039178,31]
[313009316,1706607091712,-2910.74,0.00039178,31]
[313009317,1706607091736,-1436.14,0.00039178,31]
[313009318,1706607091760,-500.0,0.00039178,31]
[313009319,1706607091782,-500.0,0.00039452,31]
[313009320,1706607091806,-516.54556489,0.00039452,31]
[313009321,1706607091829,-500.0,0.00039452,31]
[313009322,1706607091852,-750.04,0.00039452,31]
[313009323,1706607091874,-500.0,0.00039452,31]
[313009324,1706607091897,-500.0,0.00039452,31]
[313009325,1706607091921,-207.76757648,0.00039452,31]
[313009326,1706607091944,-500.0,0.00039452,31]
[313009327,1706607091969,-500.0,0.00039452,31]
[313009328,1706607091993,-500.0,0.00039452,31]
[313009329,1706607092017,-500.0,0.00039452,31]
[313009330,1706607092041,-471.39592117,0.00039452,31]
[313009331,1706607092066,-1692.55,0.00039452,31]
[313009332,1706607092090,-500.0,0.00039452,31]
[313009333,1706607092114,-828.87,0.00039452,31]
[313009334,1706607092138,-1575.2,0.00039452,31]
[313009335,1706607092275,-500.0,0.00039452,31]
[313009336,1706607092299,-1443.34,0.00039452,31]
[313009337,1706607092323,-500.0,0.00039452,31]
[313009338,1706607092347,-517.72,0.00039452,31]
[313009339,1706607092372,-500.0,0.00039452,31]
[313009340,1706607092395,-500.0,0.00039452,31]
[313009341,1706607092418,-704.72,0.00039452,31]
[313009342,1706607092442,-1232.14,0.00039452,31]
[313009343,1706607092465,-500.0,0.00039452,31]
[313009344,1706607092488,-500.0,0.00039452,31]
[313009345,1706607092511,-2391.29,0.00039452,31]
[313009346,1706607092535,-847.24,0.00039452,31]
[313009347,1706607092557,-500.0,0.00039452,31]
[313009348,1706607092582,-500.0,0.00039452,31]
[313009349,1706607092605,-500.0,0.00039452,31]
[313009350,1706607092628,-761.01,0.00039452,31]
[313009351,1706607092652,-500.0,0.00039452,31]
[313009352,1706607092675,-500.0,0.00039452,31]
[313009353,1706607092697,-500.0,0.00039452,31]
[313009354,1706607092721,-500.0,0.00039452,31]
[313009355,1706607092744,-498.93226188,0.00039452,31]
[313009356,1706607092767,-1575.03,0.00039452,31]
[313009357,1706607092790,-905.78,0.00039452,31]
[313009358,1706607092813,-500.0,0.00039452,31]
[313009359,1706607092837,-364.64748202,0.00039452,31]
[313009360,1706607092860,-500.0,0.00039452,31]
[313009361,1706607092883,-1160.62,0.00039452,31]
[313009362,1706607092907,-528.44500044,0.00039452,31]
[313009363,1706607092931,-1122.68,0.00039452,31]
[313009364,1706607092955,-300.58528711,0.00039452,31]
[313009365,1706607092979,-500.0,0.00039452,31]
[313009366,1706607093003,-500.0,0.00039452,31]
[313009367,1706607093029,-511.56472922,0.00039452,31]
[313009368,1706607093053,-500.0,0.00039452,31]
[313009369,1706607093078,-1790.94,0.00039452,31]
[313009370,1706607093102,-878.3,0.00039452,31]
[313009371,1706607093126,-500.0,0.00039452,31]
[313009372,1706607093150,-6108.1,0.00039452,31]
[313009373,1706607093173,-500.0,0.00039452,31]
[313009374,1706607093196,-969.63,0.00039452,31]
[313009375,1706607093220,-959.84,0.00039452,31]
[313009376,1706607093244,-500.0,0.00039452,31]
[313009377,1706607093267,-584.31684465,0.00039452,31]
[313009378,1706607093291,-1853.28,0.00039452,31]
[313009379,1706607093313,-500.0,0.00039452,31]
[313009380,1706607093338,-25140.0,0.00039452,31]
[313009381,1706607093361,-2266.55,0.00039452,31]
[313009382,1706607093385,-20537.92,0.00039452,31]
[313009383,1706607093407,-1073.76,0.00039452,31]
[313009384,1706607093430,-1255.84,0.00039452,31]
[313009385,1706607093454,-3530.34,0.00039452,31]
[313009386,1706607093478,-8924.87,0.00039452,31]
[313009387,1706607093501,-500.0,0.00039452,31]
[313009388,1706607093524,-5269.51,0.00039452,31]
[313009389,1706607093547,-2807.77,0.00039452,31]
[313009390,1706607093571,-500.0,0.00039452,31]
[313009391,1706607093595,-2212.33,0.00039452,31]
[313009392,1706607093618,-500.0,0.00039452,31]
[313009393,1706607093641,-500.0,0.00039452,31]
[313009394,1706607093664,-410.00000003,0.00039452,31]
[313009395,1706607093687,-500.0,0.00039452,31]
[313009396,1706607093710,-5938.62,0.00039452,31]
[313009397,1706607093733,-509.78707548,0.00039452,31]
[313009398,1706607093756,-518.76121792,0.00039452,31]
[313009399,1706607093781,-530.91,0.00039452,31]
[313009400,1706607093804,-500.0,0.00039452,31]
[313009401,1706607093828,-598.1859235,0.00039452,31]
[313009402,1706607093851,-2694.13,0.00039452,31]
[313009403,1706607093874,-2295.78,0.00039452,31]
[313009404,1706607093898,-500.0,0.00039452,31]
[313009405,1706607093921,-2021.36,0.00039452,31]
[313009406,1706607093944,-500.0,0.00039452,31]
[313009407,1706607093968,-779.7,0.00039452,31]
[313009408,1706607093993,-1742.41,0.00039452,31]
[313009409,1706607094018,-500.0,0.00039452,31]
[313009410,1706607094124,-2473.67,0.00039452,31]
[313009411,1706607094153,-1815.65,0.00039452,31]
[313009412,1706607094176,-622.01512612,0.00039452,31]
[313009413,1706607094200,-500.0,0.00039452,31]
[313009414,1706607094223,-688.53,0.00039452,31]
[313009415,1706607094247,-500.0,0.00039452,31]
[313009416,1706607094270,-2910.74,0.00039452,31]
[313009417,1706607094293,-1436.14,0.00039452,31]
[313009418,1706607094317,-500.0,0.00039452,31]
[313009419,1706607094341,-529.91321714,0.00039726,31]
[313009420,1706607094363,-500.0,0.00039726,31]
[313009421,1706607094387,-750.04,0.00039726,31]
[313009422,1706607094409,-405.86894368,0.00039726,31]
[313009423,1706607094432,-500.0,0.00039726,31]
[313009424,1706607094455,-500.0,0.00039726,31]
[313009425,1706607094477,-232.48925214,0.00039726,31]
[313009426,1706607094500,-500.0,0.00039726,31]
[313009427,1706607094523,-514.29946263,0.00039726,31]
[313009428,1706607094547,-1692.55,0.00039726,31]
[313009429,1706607094570,-1866.19127509,0.00039726,30]
[313009430,1706607094593,-500.0,0.00039726,31]
[313009431,1706607094616,-828.87,0.00039726,31]
[313009432,1706607094638,-1575.2,0.00039726,31]
[313009433,1706607094661,-500.0,0.00039726,31]
[313009434,1706607094683,-1443.34,0.00039726,31]
[313009435,1706607094706,-500.0,0.00039726,31]
[313009436,1706607094729,-517.72,0.00039726,31]
[313009437,1706607094753,-519.57718057,0.00039726,31]
[313009438,1706607094777,-500.0,0.00039726,31]
[313009439,1706607094802,-704.72,0.00039726,31]
[313009440,1706607094825,-1232.14,0.00039726,31]
[313009441,1706607094849,-500.0,0.00039726,31]
[313009442,1706607094871,-500.0,0.00039726,31]
[313009443,1706607094894,-2391.29,0.00039726,31]
[313009444,1706607094917,-847.24,0.00039726,31]
[313009445,1706607094939,-500.0,0.00039726,31]
[313009446,1706607094962,-500.0,0.00039726,31]
[313009447,1706607094989,-500.0,0.00039726,31]
[313009448,1706607095013,-761.01,0.00039726,31]
[313009449,1706607095037,-500.0,0.00039726,31]
[313009450,1706607095063,-500.0,0.00039726,31]
[313009451,1706607095087,-500.0,0.00039726,31]
[313009452,1706607095110,-500.0,0.00039726,31]
[313009453,1706607095136,-1575.03,0.00039726,31]
[313009454,1706607095160,-905.78,0.00039726,31]
[313009455,1706607095183,-500.0,0.00039726,31]
[313009456,1706607095207,-500.0,0.00039726,31]
[313009457,1706607095231,-1160.62,0.00039726,31]
[313009458,1706607095254,-1122.68,0.00039726,31]
[313009459,1706607095281,-500.0,0.00039726,31]
[313009460,1706607095305,-537.39814873,0.00039726,31]
[313009461,1706607095328,-500.0,0.00039726,31]
[313009462,1706607095352,-1790.94,0.00039726,31]
[313009463,1706607095375,-878.3,0.00039726,31]
[313009464,1706607095399,-500.0,0.00039726,31]
[313009465,1706607095424,-6108.1,0.00039726,31]
[313009466,1706607095448,-183.42178078,0.00039726,31]
[313009467,1706607095472,-969.63,0.00039726,31]
[313009468,1706607095496,-959.84,0.00039726,31]
[313009469,1706607095520,-500.0,0.00039726,31]
[313009470,1706607095545,-1853.28,0.00039726,31]
[313009471,1706607095570,-515.0255795,0.00039726,31]
[313009472,1706607095594,-25140.0,0.00039726,31]
[313009473,1706607095618,-2266.55,0.00039726,31]
[313009474,1706607095642,-20537.92,0.00039726,31]
[313009475,1706607095665,-1073.76,0.00039726,31]
[313009476,1706607095689,-1255.84,0.00039726,31]
[313009477,1706607095714,-3530.34,0.00039726,31]
[313009478,1706607095737,-8924.87,0.00039726,31]
[313009479,1706607095761,-500.0,0.00039726,31]
[313009480,1706607095791,-5269.51,0.00039726,31]
[313009481,1706607095815,-2807.77,0.00039726,31]
[313009482,1706607095839,-500.0,0.00039726,31]
[313009483,1706607095863,-2212.33,0.00039726,31]
[313009484,1706607095971,-500.0,0.00039726,31]
[313009485,1706607095996,-500.0,0.00039726,31]
[313009486,1706607096020,-500.0,0.00039726,31]
[313009487,1706607096051,-5938.62,0.00039726,31]
[313009488,1706607096075,-530.91,0.00039726,31]
[313009489,1706607096100,-500.0,0.00039726,31]
[313009490,1706607096124,-2694.13,0.00039726,31]
[313009491,1706607096149,-2295.78,0.00039726,31]
[313009492,1706607096174,-500.0,0.00039726,31]
[313009493,1706607096200,-2021.36,0.00039726,31]
[313009494,1706607096223,-500.0,0.00039726,31]
[313009495,1706607096247,-779.7,0.00039726,31]
[313009496,1706607096272,-1742.41,0.00039726,31]
[313009497,1706607096296,-500.0,0.00039726,31]
[313009498,1706607096321,-2473.67,0.00039726,31]
[313009499,1706607096347,-1815.65,0.00039726,31]
[313009500,1706607096370,-500.0,0.00039726,31]
[313009501,1706607096396,-688.53,0.00039726,31]
[313009502,1706607096421,-500.0,0.00039726,31]
[313009503,1706607096445,-2910.74,0.00039726,31]
[313009504,1706607096469,-1436.14,0.00039726,31]
[313009505,1706607096494,-500.0,0.00039726,31]
[313009506,1706607096518,-37769.18119329,0.000398,31]
[313009507,1706607113479,-500.0,0.0003863,31]
[313009508,1706607113503,-500.0,0.0003863,31]
[313009509,1706607113527,-4835.57,0.0003863,31]
[313009510,1706607113550,-1247.04,0.0003863,31]
[313009511,1706607113574,-19902.5,0.0003863,31]
[313009512,1706607113598,-500.0,0.0003863,31]
[313009513,1706607113622,-500.0,0.00038904,31]
[313009514,1706607113645,-500.0,0.00038904,31]
[313009515,1706607113669,-4835.57,0.00038904,31]
[313009516,1706607113693,-1247.04,0.00038904,31]
[313009517,1706607113717,-19902.5,0.00038904,31]
[313009518,1706607113741,-569.33292049,0.00038904,31]
[313009519,1706607113766,-500.0,0.00039178,31]
[313009520,1706607113789,-4835.57,0.00039178,31]
[313009521,1706607113813,-1247.04,0.00039178,31]
[313009522,1706607113837,-19902.5,0.00039178,31]
[313009523,1706607113862,-500.0,0.00039452,31]
[313009524,1706607113885,-4835.57,0.00039452,31]
[313009525,1706607113922,-1247.04,0.00039452,31]
[313009526,1706607113948,-19902.5,0.00039452,31]
[313009527,1706607113976,-500.0,0.00039726,31]
[313009528,1706607114001,-4835.57,0.00039726,31]
[313009529,1706607114026,-1247.04,0.00039726,31]
[313009530,1706607114051,-19902.5,0.00039726,31]
[313009531,1706607114078,-365505.11707951,0.000398,31]
[313009532,1706607117704,-125513.7017272,0.000398,31]
[313009533,1706607117728,-300.0560038,0.0003998,30]
[313009534,1706607117752,-423.60578128,0.00039999,31]
[313009535,1706607117884,-164.99939864,0.00039999,31]
[313009536,1706607117909,-500.0,0.00039999,31]
[313009537,1706607117934,-260.36019947,0.00039999,31]
[313009538,1706607117960,-500.0,0.00039999,31]
[313009539,1706607117985,-299.83472048,0.00039999,31]
[313009540,1706607118010,-647.74414387,0.00039999,31]
[313009541,1706607118041,-500.0,0.00039999,31]
[313009542,1706607118066,-500.0,0.00039999,31]
[313009543,1706607118091,-500.0,0.00039999,31]
[313009544,1706607118115,-500.0,0.00039999,31]
[313009545,1706607118140,-500.0,0.00039999,31]
[313009546,1706607118164,-500.0,0.00039999,31]
[313009547,1706607118189,-502.67650179,0.00039999,31]
[313009548,1706607118213,-417.90892846,0.00039999,31]
[313009549,1706607118239,-500.0,0.00039999,31]
[313009550,1706607118263,-500.0,0.00039999,31]
[313009551,1706607118287,-500.0,0.00039999,31]
[313009552,1706607118311,-265.38050866,0.00039999,31]
[313009553,1706607118335,-500.0,0.00039999,31]
[313009554,1706607118359,-500.0,0.00039999,31]
[313009555,1706607118384,-284.55156594,0.00039999,31]
[313009556,1706607118409,-1227.79032274,0.0004,30]
[313009557,1706607118433,-4251.06883772,0.0004,120]
[313009558,1706607118457,-468.1978116,0.0004,90]
[313009559,1706607118481,-1000.0,0.0004,40]
[313009560,1706607118505,-875.00192181,0.0004,30]
[313009561,1706607118528,-7881.14664535,0.0004,30]
[313009562,1706607118551,-500.0,0.0004,31]
[313009563,1706607118576,-750.04,0.0004,31]
[313009564,1706607118601,-500.0,0.0004,31]
[313009565,1706607118625,-500.0,0.0004,31]
[313009566,1706607118649,-500.0,0.0004,31]
[313009567,1706607118673,-1692.55,0.0004,31]
[313009568,1706607118702,-500.0,0.0004,31]
[313009569,1706607118729,-828.87,0.0004,31]
[313009570,1706607118753,-500.0,0.0004,31]
[313009571,1706607118777,-1443.34,0.0004,31]
[313009572,1706607118800,-153.16415897,0.0004,31]
[313009573,1706607118823,-517.72,0.0004,31]
[313009574,1706607118847,-500.0,0.0004,31]
[313009575,1706607118873,-704.72,0.0004,31]
[313009576,1706607118896,-1232.14,0.0004,31]
[313009577,1706607118921,-518.73914186,0.0004,31]
[313009578,1706607118945,-500.0,0.0004,31]
[313009579,1706607118969,-2391.29,0.0004,31]
[313009580,1706607118995,-847.24,0.0004,31]
[313009581,1706607119019,-500.0,0.0004,31]
[313009582,1706607119043,-516.14930231,0.0004,31]
[313009583,1706607119069,-500.0,0.0004,31]
[313009584,1706607119094,-761.01,0.0004,31]
[313009585,1706607119118,-500.0,0.0004,31]
[313009586,1706607119142,-165.71992583,0.0004,31]
[313009587,1706607119166,-500.0,0.0004,31]
[313009588,1706607119190,-500.0,0.0004,31]
[313009589,1706607119214,-1575.03,0.0004,31]
[313009590,1706607119238,-905.78,0.0004,31]
[313009591,1706607119261,-417.39026066,0.0004,31]
[313009592,1706607119284,-500.0,0.0004,31]
[313009593,1706607119307,-1160.62,0.0004,31]
[313009594,1706607119330,-1122.68,0.0004,31]
[313009595,1706607119353,-583.6124752,0.0004,31]
[313009596,1706607119376,-1790.94,0.0004,31]
[313009597,1706607119398,-969.63,0.0004,31]
[313009598,1706607119435,-959.84,0.0004,31]
[313009599,1706607119463,-500.0,0.0004,31]
[313009600,1706607119491,-1853.28,0.0004,31]
[313009601,1706607119597,-2266.55,0.0004,31]
[313009602,1706607119626,-20537.92,0.0004,31]
[313009603,1706607119651,-1073.76,0.0004,31]
[313009604,1706607119676,-1255.84,0.0004,31]
[313009605,1706607119701,-3530.34,0.0004,31]
[313009606,1706607119726,-8924.87,0.0004,31]
[313009607,1706607119751,-500.0,0.0004,31]
[313009608,1706607119777,-5269.51,0.0004,31]
[313009609,1706607119801,-2807.77,0.0004,31]
[313009610,1706607119826,-500.0,0.0004,31]
[313009611,1706607119854,-2212.33,0.0004,31]
[313009612,1706607119879,-500.0,0.0004,31]
[313009613,1706607119904,-500.0,0.0004,31]
[313009614,1706607119928,-166.60291837,0.0004,31]
[313009615,1706607119952,-5938.62,0.0004,31]
[313009616,1706607119978,-530.91,0.0004,31]
[313009617,1706607120002,-500.0,0.0004,31]
[313009618,1706607120027,-2694.13,0.0004,31]
[313009619,1706607120050,-2295.78,0.0004,31]
[313009620,1706607120077,-500.0,0.0004,31]
[313009621,1706607120101,-2021.36,0.0004,31]
[313009622,1706607120124,-500.0,0.0004,31]
[313009623,1706607120149,-779.7,0.0004,31]
[313009624,1706607120173,-1742.41,0.0004,31]
[313009625,1706607120197,-500.0,0.0004,31]
[313009626,1706607120223,-2473.67,0.0004,31]
[313009627,1706607120251,-1815.65,0.0004,31]
[313009628,1706607120279,-688.53,0.0004,31]
[313009629,1706607120306,-500.0,0.0004,31]
[313009630,1706607120332,-500.0,0.0004,31]
[313009631,1706607120359,-2910.74,0.0004,31]
[313009632,1706607120384,-1436.14,0.0004,31]
[313009633,1706607120407,-500.0,0.0004,31]
[313009634,1706607120431,-500.0,0.0004,31]
[313009635,1706607120455,-4835.57,0.0004,31]
[313009636,1706607120479,-1247.04,0.0004,31]
[313009637,1706607120503,-19902.5,0.0004,31]
[313009638,1706607120526,-500.0,0.00040273,31]
[313009639,1706607120550,-750.04,0.00040273,31]
[313009640,1706607120573,-500.0,0.00040273,31]
[313009641,1706607120598,-500.0,0.00040273,31]
[313009642,1706607120622,-500.0,0.00040273,31]
[313009643,1706607120645,-1692.55,0.00040273,31]
[313009644,1706607120669,-500.0,0.00040273,31]
[313009645,1706607120692,-828.87,0.00040273,31]
[313009646,1706607120716,-500.0,0.00040273,31]
[313009647,1706607120739,-1443.34,0.00040273,31]
[313009648,1706607120762,-517.72,0.00040273,31]
[313009649,1706607120786,-500.0,0.00040273,31]
[313009650,1706607120812,-704.72,0.00040273,31]
[313009651,1706607120838,-1232.14,0.00040273,31]
[313009652,1706607120862,-500.0,0.00040273,31]
[313009653,1706607120886,-2391.29,0.00040273,31]
[313009654,1706607120913,-847.24,0.00040273,31]
[313009655,1706607120942,-500.0,0.00040273,31]
[313009656,1706607120967,-500.0,0.00040273,31]
[313009657,1706607120990,-761.01,0.00040273,31]
[313009658,1706607121014,-500.0,0.00040273,31]
[313009659,1706607121036,-500.0,0.00040273,31]
[313009660,1706607121060,-500.0,0.00040273,31]
[313009661,1706607121083,-1575.03,0.00040273,31]
[313009662,1706607121107,-905.78,0.00040273,31]
[313009663,1706607121131,-500.0,0.00040273,31]
[313009664,1706607121154,-1160.62,0.00040273,31]
[313009665,1706607121247,-1122.68,0.00040273,31]
[313009666,1706607121272,-1790.94,0.00040273,31]
[313009667,1706607121296,-969.63,0.00040273,31]
[313009668,1706607121320,-959.84,0.00040273,31]
[313009670,1706607121344,-500.0,0.00040273,31]
[313009672,1706607121369,-1853.28,0.00040273,31]
[313009673,1706607121392,-2266.55,0.00040273,31]
[313009675,1706607121418,-20537.92,0.00040273,31]
[313009676,1706607121442,-1073.76,0.00040273,31]
[313009677,1706607121466,-1255.84,0.00040273,31]
[313009678,1706607121490,-3530.34,0.00040273,31]
[313009679,1706607121517,-8924.87,0.00040273,31]
[313009680,1706607121541,-500.0,0.00040273,31]
[313009681,1706607121565,-5269.51,0.00040273,31]
[313009682,1706607121590,-2807.77,0.00040273,31]
[313009683,1706607121613,-500.0,0.00040273,31]
[313009684,1706607121637,-2212.33,0.00040273,31]
[313009685,1706607121662,-500.0,0.00040273,31]
[313009686,1706607121685,-500.0,0.00040273,31]
[313009687,1706607121709,-5938.62,0.00040273,31]
[313009688,1706607121733,-530.91,0.00040273,31]
[313009689,1706607121757,-500.0,0.00040273,31]
[313009690,1706607121782,-2694.13,0.00040273,31]
[313009691,1706607121806,-2295.78,0.00040273,31]
[313009692,1706607121830,-500.0,0.00040273,31]
[313009693,1706607121854,-2021.36,0.00040273,31]
[313009694,1706607121878,-500.0,0.00040273,31]
[313009695,1706607121902,-779.7,0.00040273,31]
[313009696,1706607121926,-1742.41,0.00040273,31]
[313009697,1706607121951,-500.0,0.00040273,31]
[313009699,1706607121975,-2473.67,0.00040273,31]
[313009701,1706607122005,-1815.65,0.00040273,31]
[313009702,1706607122032,-688.53,0.00040273,31]
[313009703,1706607122055,-500.0,0.00040273,31]
[313009704,1706607122080,-500.0,0.00040273,31]
[313009705,1706607122105,-2910.74,0.00040273,31]
[313009706,1706607122129,-1436.14,0.00040273,31]
[313009707,1706607122155,-500.0,0.00040273,31]
[313009708,1706607122180,-500.0,0.00040273,31]
[313009709,1706607122204,-4835.57,0.00040273,31]
[313009710,1706607122228,-1247.04,0.00040273,31]
[313009711,1706607122254,-19902.5,0.00040273,31]
[313009712,1706607122278,-500.0,0.00040547,31]
[313009713,1706607122302,-750.04,0.00040547,31]
[313009714,1706607122327,-500.0,0.00040547,31]
[313009715,1706607122350,-500.0,0.00040547,31]
[313009716,1706607122373,-300.66306108,0.00040547,31]
[313009717,1706607122396,-1692.55,0.00040547,31]
[313009718,1706607122419,-500.0,0.00040547,31]
[313009719,1706607122445,-828.87,0.00040547,31]
[313009720,1706607122469,-500.0,0.00040547,31]
[313009721,1706607122492,-1443.34,0.00040547,31]
[313009722,1706607122517,-517.72,0.00040547,31]
[313009723,1706607122541,-500.0,0.00040547,31]
[313009724,1706607122564,-704.72,0.00040547,31]
[313009725,1706607122587,-1232.14,0.00040547,31]
[313009726,1706607122610,-500.0,0.00040547,31]
[313009727,1706607122634,-2391.29,0.00040547,31]
[313009728,1706607122657,-847.24,0.00040547,31]
[313009729,1706607122681,-500.0,0.00040547,31]
[313009730,1706607122705,-500.0,0.00040547,31]
[313009731,1706607122729,-761.01,0.00040547,31]
[313009732,1706607122824,-591.59689967,0.00040547,31]
[313009733,1706607122849,-500.0,0.00040547,31]
[313009734,1706607122873,-500.0,0.00040547,31]
[313009735,1706607122897,-1575.03,0.00040547,31]
[313009736,1706607122921,-905.78,0.00040547,31]
[313009737,1706607122946,-500.0,0.00040547,31]
[313009738,1706607122969,-1160.62,0.00040547,31]
[313009739,1706607122993,-1122.68,0.00040547,31]
[313009740,1706607123017,-1790.94,0.00040547,31]
[313009741,1706607123040,-969.63,0.00040547,31]
[313009742,1706607123065,-959.84,0.00040547,31]
[313009743,1706607123098,-500.0,0.00040547,31]
[313009744,1706607123122,-1853.28,0.00040547,31]
[313009745,1706607123149,-2266.55,0.00040547,31]
[313009746,1706607123173,-20537.92,0.00040547,31]
[313009747,1706607123197,-1073.76,0.00040547,31]
[313009748,1706607123221,-1255.84,0.00040547,31]
[313009749,1706607123245,-3530.34,0.00040547,31]
[313009750,1706607123271,-8924.87,0.00040547,31]
[313009751,1706607123295,-500.0,0.00040547,31]
[313009752,1706607123320,-5269.51,0.00040547,31]
[313009753,1706607123345,-2807.77,0.00040547,31]
[313009754,1706607123369,-500.0,0.00040547,31]
[313009755,1706607123392,-2212.33,0.00040547,31]
[313009756,1706607123415,-20.00683724,0.00040547,31]
[313009758,1706607181605,-5000.0,0.00043709,120]
[313009759,1706607181632,-5000.0,0.00043709,120]
[313009760,1706607181663,-5000.0,0.00043709,120]
[313009761,1706607181691,-5000.0,0.00043709,120]
[313009762,1706607181718,-5000.0,0.00043709,120]
[313009763,1706607181746,-5000.0,0.00043709,120]
[313009764,1706607181773,-5000.0,0.00043709,120]
[313009765,1706607181802,-5000.0,0.00043709,120]
[313009766,1706607181836,-2355.74931109,0.00043709,120]
[313009767,1706607181862,-3030.90739066,0.00043709,35]
[313009768,1706607181891,-500.0,0.00043709,120]
[313009769,1706607181918,-870.19812116,0.00043709,120]
[313009770,1706607181945,-3207.49759026,0.00043709,120]
[313009771,1706607181973,-4332.13837547,0.00043709,120]
[313009772,1706607181999,-551.16807294,0.00043709,120]
[313009773,1706607182026,-610.4335787,0.00043709,120]
[313009774,1706607182061,-480.70814727,0.00043709,120]
[313009775,1706607182086,-1043.96840823,0.00043709,120]
[313009776,1706607182109,-899.37652451,0.00043709,120]
[313009777,1706607182133,-2583.44752172,0.00043709,120]
[313009778,1706607182158,-314.14752312,0.00043709,120]
[313009779,1706607182181,-2444.33267975,0.00043709,120]
[313009780,1706607182205,-109171.36775818,0.00043709,60]
[313009781,1706607182229,-5000.0,0.00043709,120]
[313009782,1706607182253,-13823.67109089,0.00043709,60]
[313009783,1706607182276,-8011.69997931,0.00043709,35]
[313009784,1706607182299,-2684.93179941,0.00043709,65]
[313009785,1706607182323,-300.0,0.00043709,120]
[313009786,1706607182347,-4353.47,0.00043709,61]
[313009787,1706607182377,-594.57,0.00043709,120]
[313009788,1706607182401,-2066.10588636,0.00043709,120]
[313009789,1706607182427,-1156.63700424,0.00043709,35]
[313009790,1706607182451,-269.98,0.00043709,120]
[313009791,1706607182475,-157.3634773,0.00043709,120]
[313009792,1706607182499,-5000.0,0.00043709,120]
[313009793,1706607182523,-5000.0,0.00043709,120]
[313009794,1706607182548,-5000.0,0.00043709,120]
[313009795,1706607182573,-5000.0,0.00043709,120]
[313009796,1706607182596,-5000.0,0.00043709,120]
[313009797,1706607182620,-5000.0,0.00043709,120]
[313009798,1706607182645,-5000.0,0.00043709,120]
[313009799,1706607182670,-5000.0,0.00043709,120]
[313009800,1706607182695,-5000.0,0.00043709,120]
[313009801,1706607182775,-5000.0,0.00043709,120]
[313009802,1706607182810,-5000.0,0.00043709,120]
[313009803,1706607182834,-5000.0,0.00043709,120]
[313009804,1706607182857,-5000.0,0.00043709,120]
[313009805,1706607182881,-5000.0,0.00043709,120]
[313009806,1706607182907,-5000.0,0.00043709,120]
[313009807,1706607182931,-5000.0,0.00043709,120]
[313009808,1706607182954,-1433.5512136,0.00043709,120]
[313009809,1706607186263,-3422.52983864,0.0004,120]
[313009810,1706607186297,-8214.12777235,0.00041,90]
[313009811,1706607186322,-5656.34266867,0.00041,60]
[313009812,1706607186347,-1000.0,0.00041,41]
[313009813,1706607186372,-457.0,0.00041,90]
[313009814,1706607186398,-220.56703399,0.00041095,120]
[313009815,1706607186425,-520.43897015,0.00041095,120]
[313009818,1706607197746,549.99203862,0.0004,90]
[313009819,1706607206198,11324.27048381,0.00041,90]
[313009821,1706607860638,155.021703,0.0003,120]
[313009839,1706608232528,-155.03875969,0.00023397,4]
[313009840,1706608232539,-330.99386602,0.00024362,2]